fUST/lending_fUST_20250302
["ID","MTS","AMOUNT","RATE_DAILY","PERIOD"]
[355009129,1740864666019,-151.0,0.00025479,7]
[355009130,1740864666029,-178.555912,0.00025479,7]
[355009131,1740864666039,-500.0,0.00025479,2]
[355009132,1740864666050,-1454.86,0.00025479,2]
[355009133,1740864666061,-500.0,0.00025479,2]
[355009134,1740864666072,-151.0,0.00025479,7]
[355009135,1740864666083,-926.6,0.00025479,2]
[355009136,1740864666094,-500.0,0.00025479,2]
[355009137,1740864666105,-731.19,0.00025479,2]
[355009138,1740864666115,-151.0,0.00025479,7]
[355009139,1740864666125,-151.0,0.00025479,7]
[355009140,1740864666136,-684.17,0.00025479,2]
[355009141,1740864666152,-500.0,0.00025479,2]
[355009142,1740864666163,-500.0,0.00025479,2]
[355009143,1740864666175,-500.0,0.00025479,2]
[355009144,1740864666188,-500.0,0.00025479,2]
[355009145,1740864666202,-500.0,0.00025479,2]
[355009146,1740864666214,-500.0,0.00025479,2]
[355009147,1740864666226,-500.0,0.00025479,2]
[355009148,1740864666242,-1511.48,0.00025479,2]
[355009149,1740864666253,-500.0,0.00025479,2]
[355009150,1740864666266,-500.0,0.00025479,2]
[355009151,1740864666278,-668.48,0.00025479,2]
[355009152,1740864666290,-500.0,0.00025479,2]
[355009153,1740864666304,-624.05,0.00025479,2]
[355009154,1740864666316,-500.0,0.00025479,2]
[355009155,1740864666328,-500.0,0.00025479,2]
[355009156,1740864666339,-500.0,0.00025479,2]
[355009157,1740864666351,-500.0,0.00025479,2]
[355009158,1740864666362,-500.0,0.00025479,2]
[355009159,1740864666374,-607.4,0.00025479,2]
[355009160,1740864666384,-500.0,0.00025479,2]
[355009161,1740864666394,-267.226842,0.00025479,7]
[355009162,1740864666405,-267.226842,0.00025479,7]
[355009163,1740864666416,-2478.05,0.00025479,2]
[355009164,1740864666427,-1330.13,0.00025479,2]
[355009165,1740864666438,-401.13243875,0.00025479,2]
[355009166,1740864666448,-934.01,0.00025479,2]
[355009167,1740864666458,-267.226842,0.00025479,7]
[355009168,1740864666468,-267.226842,0.00025479,7]
[355009169,1740864666478,-500.0,0.00025479,2]
[355009170,1740864666493,-500.0,0.00025479,2]
[355009171,1740864666504,-530.69989387,0.00025479,2]
[355009172,1740864666514,-531.97,0.00025479,2]
[355009173,1740864666525,-1599.26,0.00025479,2]
[355009174,1740864666535,-500.0,0.00025479,2]
[355009175,1740864666546,-151.0,0.00025479,7]
[355009176,1740864666555,-1571.32,0.00025479,2]
[355009177,1740864666565,-202.89545868,0.00025479,2]
[355009178,1740864666575,-1599.16,0.00025479,2]
[355009179,1740864666585,-232.336558,0.00025479,7]
[355009180,1740864666594,-232.336558,0.00025479,7]
[355009181,1740864666604,-500.0,0.00025479,2]
[355009182,1740864666614,-500.0,0.00025479,2]
[355009183,1740864666630,-706.17,0.00025479,2]
[355009184,1740864666641,-736.26,0.00025479,2]
[355009185,1740864666651,-934.19,0.00025479,2]
[355009186,1740864666661,-566.41,0.00025479,2]
[355009187,1740864666672,-500.0,0.00025479,2]
[355009188,1740864666682,-500.0,0.00025479,2]
[355009189,1740864666692,-684.14,0.00025479,2]
[355009190,1740864666702,-500.0,0.00025479,2]
[355009191,1740864666713,-817.76,0.00025479,2]
[355009192,1740864666723,-500.0,0.00025479,2]
[355009193,1740864666734,-500.0,0.00025479,2]
[355009194,1740864666744,-500.0,0.00025479,2]
[355009195,1740864666754,-500.0,0.00025479,2]
[355009196,1740864666764,-1047.27,0.00025479,2]
[355009197,1740864666774,-500.0,0.00025479,2]
[355009198,1740864666784,-2177.75,0.00025479,2]
[355009199,1740864666794,-500.0,0.00025479,2]
[355009200,1740864666804,-500.0,0.00025479,2]
[355009201,1740864666814,-500.0,0.00025479,2]
[355009202,1740864666824,-901.5,0.00025479,2]
[355009203,1740864666835,-500.0,0.00025479,2]
[355009204,1740864666845,-1088.91,0.00025479,2]
[355009205,1740864666855,-753.07,0.00025479,2]
[355009206,1740864666866,-500.0,0.00025479,2]
[355009207,1740864666876,-520.07,0.00025479,2]
[355009208,1740864666886,-951.77,0.00025479,2]
[355009209,1740864666896,-780.3,0.00025479,2]
[355009210,1740864666907,-500.0,0.00025479,2]
[355009211,1740864666917,-512.63,0.00025479,2]
[355009212,1740864666927,-500.0,0.00025479,2]
[355009213,1740864666937,-500.0,0.00025479,2]
[355009214,1740864666947,-713.49,0.00025479,2]
[355009215,1740864666957,-1540.75,0.00025479,2]
[355009216,1740864666967,-500.0,0.00025479,2]
[355009217,1740864666977,-500.0,0.00025479,2]
[355009218,1740864666989,-500.0,0.00025479,2]
[355009219,1740864666999,-500.0,0.00025479,2]
[355009220,1740864667010,-500.0,0.00025479,2]
[355009221,1740864667020,-500.0,0.00025479,2]
[355009222,1740864667030,-775.16,0.00025479,2]
[355009223,1740864667041,-643.17,0.00025479,2]
[355009224,1740864667052,-500.0,0.00025479,2]
[355009225,1740864667062,-587.94,0.00025479,2]
[355009226,1740864667073,-195.51698513,0.00025479,2]
[355009227,1740864667083,-933.88,0.00025479,2]
[355009228,1740864667093,-500.0,0.00025479,2]
[355009229,1740864667102,-865.43,0.00025479,2]
[355009230,1740864667112,-500.0,0.00025479,2]
[355009231,1740864667123,-754.88,0.00025479,2]
[355009232,1740864667134,-1057.864983,0.00025479,7]
[355009233,1740864667146,-1127.71,0.00025479,2]
[355009234,1740864667157,-1082.64,0.00025479,2]
[355009235,1740864667167,-1057.864975,0.00025479,7]
[355009236,1740864667179,-250.654782,0.00025479,7]
[355009237,1740864667190,-250.65478,0.00025479,7]
[355009238,1740864667201,-500.0,0.00025479,2]
[355009239,1740864667211,-1017.15,0.00025479,2]
[355009240,1740864667222,-1484.0,0.00025479,2]
[355009241,1740864667234,-1327.87,0.00025479,2]
[355009242,1740864667245,-194.435715,0.00025479,7]
[355009243,1740864667260,-194.435715,0.00025479,7]
[355009244,1740864667270,-927.59,0.00025479,2]
[355009245,1740864667280,-194.435715,0.00025479,7]
[355009246,1740864667290,-194.435715,0.00025479,7]
[355009247,1740864667300,-407.559714,0.00025479,7]
[355009248,1740864667311,-500.0,0.00025479,2]
[355009249,1740864667322,-1345.24,0.00025479,2]
[355009250,1740864667334,-407.559723,0.00025479,7]
[355009251,1740864667344,-1613.63,0.00025479,2]
[355009252,1740864667355,-500.0,0.00025479,2]
[355009253,1740864667367,-500.0,0.00025479,2]
[355009254,1740864667377,-661.56,0.00025479,2]
[355009255,1740864667388,-500.0,0.00025479,2]
[355009256,1740864667399,-500.0,0.00025479,2]
[355009257,1740864667410,-165389.76,0.00025479,2]
[355009258,1740864667421,-500.0,0.00025479,2]
[355009259,1740864667431,-559.72,0.00025479,2]
[355009260,1740864667442,-151.0,0.00025479,7]
[355009261,1740864667453,-500.0,0.00025479,2]
[355009262,1740864667463,-3414.87,0.00025479,2]
[355009263,1740864667474,-220.55185853,0.00025479,2]
[355009264,1740864667487,-1870.31,0.00025479,2]
[355009265,1740864667497,-353.95508625,0.00025479,2]
[355009266,1740864670363,-215.85429606,0.0002425,2]
[355009267,1740864670374,-500.0,0.0002425,2]
[355009268,1740864670384,-500.0,0.0002425,2]
[355009269,1740864670394,-500.0,0.0002425,2]
[355009270,1740864670404,-500.0,0.0002425,2]
[355009271,1740864670414,-500.0,0.0002425,2]
[355009272,1740864670423,-500.0,0.0002425,2]
[355009273,1740864670433,-500.0,0.0002425,2]
[355009274,1740864670443,-500.0,0.0002425,2]
[355009275,1740864670453,-500.0,0.0002425,2]
[355009276,1740864670463,-500.0,0.0002425,2]
[355009277,1740864670473,-500.0,0.0002425,2]
[355009278,1740864670483,-500.0,0.0002425,2]
[355009279,1740864670493,-454.25210988,0.0002425,2]
[355009280,1740864670509,-45.74789012,0.0002425,2]
[355009281,1740864670519,-500.0,0.0002425,2]
[355009282,1740864670529,-500.0,0.0002425,2]
[355009283,1740864670539,-500.0,0.0002425,2]
[355009284,1740864670549,-500.0,0.0002425,2]
[355009285,1740864670558,-233.57618691,0.0002425,2]
[355009311,1740865629480,-409.43869821,0.0002203,2]
[355009312,1740865647083,-508.43070439,0.0002203,2]
[355009313,1740865647106,-300.0,0.0002206,2]
[355009314,1740865647129,-930.39328243,0.00022061,2]
[355009315,1740865647157,-3054.45068176,0.00022061,2]
[355009318,1740865748156,-1171.38072676,0.00022,2]
[355009319,1740865748179,-6015.15603581,0.00022061,2]
[355009320,1740865748203,-1334.64232672,0.0002215,2]
[355009321,1740865748226,-651.899076,0.00022542,2]
[355009322,1740865748250,-190.947695,0.00022753,2]
[355009323,1740865748274,-300.0,0.00022845,2]
[355009324,1740865748298,-4899.4234574,0.00022846,2]
[355009325,1740865749110,-18591.50005479,0.00022846,2]
[355009327,1740865763079,-1409.07648781,0.00022846,2]
[355009328,1740865763103,-60.92351219,0.00022943,2]
[355009329,1740865773098,-189.07648781,0.00022943,2]
[355009330,1740865773129,-388.39478635,0.00023063,2]
[355009394,1740865837807,-300.0,0.00022981,2]
[355009395,1740865837817,-165.21855,0.00023024,5]
[355009399,1740865838400,-10.12130521,0.00023024,5]
[355009400,1740865838410,-329.26210387,0.00023063,2]
[355009401,1740865838424,-1546.64310976,0.00023063,2]
[355009402,1740865838663,-212.9715088,0.00023163,2]
[355009403,1740865838684,-504.68538143,0.00023246,2]
[355009404,1740865838706,-1602.37344307,0.00023246,2]
[355009405,1740865838716,-190.947695,0.00023891,2]
[355009406,1740865838725,-151.0,0.000241,10]
[355009407,1740865838735,-239.51487424,0.000241,2]
[355009408,1740865838744,-300.0,0.0002414,2]
[355009409,1740865838754,-506.19,0.00024141,3]
[355009410,1740865838764,-253.1,0.00024141,3]
[355009411,1740865838773,-759.31,0.00024141,3]
[355009412,1740865838784,-1853.02608074,0.00024141,2]
[355009413,1740865838794,-500.0,0.0002415,2]
[355009414,1740865838804,-500.0,0.0002415,2]
[355009415,1740865838813,-214.24147163,0.0002415,2]
[355009416,1740865838823,-297.21829829,0.0002415,2]
[355009417,1740865838832,-222000.0,0.00024151,2]
[355009418,1740865838842,-331.28,0.000242,7]
[355009419,1740865838853,-151.0,0.000242,9]
[355009420,1740865838863,-465.08122446,0.00024278,2]
[355009421,1740865838873,-239.51487422,0.00024283,2]
[355009422,1740865838883,-151.0,0.000243,5]
[355009423,1740865838893,-220.38105167,0.00024384,2]
[355009424,1740865838903,-151.0,0.000244,6]
[355009425,1740865838913,-239.51487422,0.00024466,2]
[355009426,1740865838923,-151.0,0.000245,8]
[355009427,1740865838933,-151.0,0.000245,9]
[355009428,1740865838942,-3000.0,0.00024557,2]
[355009429,1740865838952,-6042.08128693,0.00024557,2]
[355009430,1740865838961,-151.0,0.000246,5]
[355009431,1740865838972,-228.47985072,0.00024628,2]
[355009432,1740865838981,-151.0,0.00024642,2]
[355009433,1740865838991,-500.0,0.00024642,2]
[355009434,1740865839001,-710.0,0.00024642,2]
[355009435,1740865839010,-239.51487422,0.00024648,2]
[355009436,1740865839020,-500.0,0.00024657,2]
[355009437,1740865839029,-500.0,0.00024657,2]
[355009438,1740865839039,-335.06200885,0.00024657,2]
[355009439,1740865839048,-500.0,0.00024657,2]
[355009440,1740865839059,-209.62608574,0.00024657,2]
[355009441,1740865839069,-500.0,0.00024657,2]
[355009442,1740865839078,-500.0,0.00024657,2]
[355009443,1740865839088,-716.74,0.00024657,2]
[355009444,1740865839099,-500.0,0.00024657,2]
[355009445,1740865839108,-500.0,0.00024657,2]
[355009446,1740865839118,-500.0,0.00024657,2]
[355009447,1740865839128,-500.0,0.00024657,2]
[355009448,1740865839137,-500.0,0.00024657,2]
[355009449,1740865839147,-500.0,0.00024657,2]
[355009450,1740865839156,-500.0,0.00024657,2]
[355009451,1740865839165,-500.0,0.00024657,2]
[355009452,1740865839175,-611.89,0.00024657,2]
[355009453,1740865839185,-500.0,0.00024657,2]
[355009454,1740865839195,-494.34112678,0.00024657,2]
[355009455,1740865839204,-500.0,0.00024657,2]
[355009456,1740865839213,-500.0,0.00024657,2]
[355009457,1740865839224,-500.0,0.00024657,2]
[355009458,1740865839235,-902.31,0.00024657,2]
[355009459,1740865839244,-500.0,0.00024657,2]
[355009460,1740865839255,-500.0,0.00024657,2]
[355009461,1740865839264,-500.0,0.00024657,2]
[355009462,1740865839274,-500.0,0.00024657,2]
[355009463,1740865839284,-500.0,0.00024657,2]
[355009464,1740865839293,-500.0,0.00024657,2]
[355009465,1740865839303,-500.0,0.00024657,2]
[355009466,1740865839314,-500.0,0.00024657,2]
[355009467,1740865839324,-358.43228529,0.00024657,2]
[355009468,1740865839334,-500.0,0.00024657,2]
[355009470,1740865839344,-500.0,0.00024657,2]
[355009472,1740865839354,-500.0,0.00024657,2]
[355009474,1740865839364,-500.0,0.00024657,2]
[355009476,1740865839375,-572.07,0.00024657,2]
[355009477,1740865839384,-500.0,0.00024657,2]
[355009478,1740865839394,-500.0,0.00024657,2]
[355009479,1740865839404,-500.0,0.00024657,2]
[355009480,1740865839413,-500.0,0.00024657,2]
[355009481,1740865839423,-500.0,0.00024657,2]
[355009482,1740865839433,-500.0,0.00024657,2]
[355009485,1740865839456,-1069.98,0.00024657,2]
[355009486,1740865839468,-500.0,0.00024657,2]
[355009487,1740865839478,-500.0,0.00024657,2]
[355009488,1740865839489,-500.0,0.00024657,2]
[355009489,1740865839499,-500.0,0.00024657,2]
[355009490,1740865839510,-500.0,0.00024657,2]
[355009492,1740865839520,-579.62638565,0.00024657,2]
[355009494,1740865839531,-500.0,0.00024657,2]
[355009496,1740865839542,-500.0,0.00024657,2]
[355009498,1740865839557,-500.0,0.00024657,2]
[355009500,1740865839568,-500.0,0.00024657,2]
[355009501,1740865839578,-407.70227789,0.00024657,2]
[355009502,1740865839589,-161.76926756,0.00024657,2]
[355009503,1740865839600,-500.0,0.00024657,2]
[355009504,1740865839610,-500.0,0.00024657,2]
[355009505,1740865839621,-500.0,0.00024657,2]
[355009506,1740865839632,-500.0,0.00024657,2]
[355009507,1740865839642,-500.0,0.00024657,2]
[355009508,1740865839653,-500.0,0.00024657,2]
[355009509,1740865839663,-500.0,0.00024657,2]
[355009510,1740865839673,-761.98,0.00024657,2]
[355009511,1740865839684,-500.0,0.00024657,2]
[355009512,1740865839694,-500.0,0.00024657,2]
[355009513,1740865839705,-500.0,0.00024657,2]
[355009514,1740865839716,-500.0,0.00024657,2]
[355009515,1740865839727,-500.0,0.00024657,2]
[355009516,1740865839739,-500.0,0.00024657,2]
[355009517,1740865839749,-500.0,0.00024657,2]
[355009518,1740865839759,-616.95,0.00024657,2]
[355009519,1740865839770,-500.0,0.00024657,2]
[355009520,1740865839780,-500.0,0.00024657,2]
[355009521,1740865839790,-500.0,0.00024657,2]
[355009522,1740865839800,-500.0,0.00024657,2]
[355009523,1740865839811,-593.01578155,0.00024657,2]
[355009524,1740865839821,-793.31,0.00024657,2]
[355009525,1740865839832,-500.0,0.00024657,2]
[355009526,1740865839844,-500.0,0.00024657,2]
[355009527,1740865839854,-501.16755942,0.00024657,2]
[355009528,1740865839865,-508.06437309,0.00024657,2]
[355009529,1740865839875,-500.0,0.00024657,2]
[355009530,1740865839885,-500.0,0.00024657,2]
[355009531,1740865839895,-1040.31,0.00024657,2]
[355009532,1740865839906,-500.0,0.00024657,2]
[355009533,1740865839917,-500.0,0.00024657,2]
[355009534,1740865839927,-500.0,0.00024657,2]
[355009535,1740865839937,-500.0,0.00024657,2]
[355009536,1740865839948,-283.83787859,0.00024657,2]
[355009537,1740865839958,-1041.91,0.00024657,2]
[355009538,1740865839968,-759.41,0.00024657,2]
[355009539,1740865839979,-500.0,0.00024657,2]
[355009540,1740865839989,-500.0,0.00024657,2]
[355009541,1740865839999,-500.0,0.00024657,2]
[355009542,1740865840008,-669.86,0.00024657,2]
[355009543,1740865840019,-500.0,0.00024657,2]
[355009544,1740865840029,-998.27,0.00024657,2]
[355009546,1740865840040,-500.0,0.00024657,2]
[355009547,1740865840051,-500.0,0.00024657,2]
[355009549,1740865840068,-668.29,0.00024657,2]
[355009550,1740865840078,-500.0,0.00024657,2]
[355009551,1740865840088,-981.47,0.00024657,2]
[355009552,1740865840099,-500.0,0.00024657,2]
[355009553,1740865840109,-500.0,0.00024657,2]
[355009554,1740865840120,-500.0,0.00024657,2]
[355009556,1740865840130,-1497.06,0.00024657,2]
[355009557,1740865840140,-500.0,0.00024657,2]
[355009558,1740865840150,-500.0,0.00024657,2]
[355009559,1740865840160,-500.0,0.00024657,2]
[355009560,1740865840171,-500.0,0.00024657,2]
[355009561,1740865840181,-500.0,0.00024657,2]
[355009562,1740865840191,-500.0,0.00024657,2]
[355009563,1740865840201,-500.0,0.00024657,2]
[355009564,1740865840211,-1297.68,0.00024657,2]
[355009565,1740865840222,-886.8,0.00024657,2]
[355009566,1740865840232,-671.34,0.00024657,2]
[355009567,1740865840242,-500.0,0.00024657,2]
[355009568,1740865840253,-500.0,0.00024657,2]
[355009569,1740865840263,-500.0,0.00024657,2]
[355009570,1740865840273,-500.0,0.00024657,2]
[355009571,1740865840284,-500.0,0.00024657,2]
[355009572,1740865840294,-500.0,0.00024657,2]
[355009573,1740865840304,-653.48,0.00024657,2]
[355009574,1740865840315,-500.0,0.00024657,2]
[355009575,1740865840325,-500.0,0.00024657,2]
[355009576,1740865840336,-500.0,0.00024657,2]
[355009577,1740865840346,-1032.83,0.00024657,2]
[355009578,1740865840357,-500.0,0.00024657,2]
[355009579,1740865840367,-500.0,0.00024657,2]
[355009580,1740865840377,-500.0,0.00024657,2]
[355009581,1740865840387,-500.0,0.00024657,2]
[355009582,1740865840398,-1537.98,0.00024657,2]
[355009583,1740865840408,-500.0,0.00024657,2]
[355009584,1740865840418,-500.0,0.00024657,2]
[355009585,1740865840428,-500.0,0.00024657,2]
[355009586,1740865840439,-1331.5,0.00024657,2]
[355009587,1740865840449,-500.0,0.00024657,2]
[355009588,1740865840459,-500.0,0.00024657,2]
[355009589,1740865840469,-500.0,0.00024657,2]
[355009590,1740865840480,-500.0,0.00024657,2]
[355009591,1740865840490,-500.0,0.00024657,2]
[355009592,1740865840500,-500.0,0.00024657,2]
[355009593,1740865840510,-572.04,0.00024657,2]
[355009594,1740865840520,-500.0,0.00024657,2]
[355009595,1740865840530,-500.0,0.00024657,2]
[355009596,1740865840540,-500.0,0.00024657,2]
[355009597,1740865840552,-723.69,0.00024657,2]
[355009598,1740865840562,-500.0,0.00024657,2]
[355009599,1740865840572,-500.0,0.00024657,2]
[355009600,1740865840582,-500.0,0.00024657,2]
[355009601,1740865840592,-500.0,0.00024657,2]
[355009602,1740865840602,-500.0,0.00024657,2]
[355009603,1740865840612,-523.15,0.00024657,2]
[355009604,1740865840622,-1539.8,0.00024657,2]
[355009605,1740865840632,-1037.31,0.00024657,2]
[355009606,1740865840642,-500.0,0.00024657,2]
[355009607,1740865840652,-2368.87,0.00024657,2]
[355009608,1740865840662,-1909.25,0.00024657,2]
[355009609,1740865840672,-500.0,0.00024657,2]
[355009610,1740865840682,-500.0,0.00024657,2]
[355009611,1740865840692,-500.0,0.00024657,2]
[355009612,1740865840701,-500.0,0.00024657,2]
[355009613,1740865840712,-500.0,0.00024657,2]
[355009614,1740865840722,-500.0,0.00024657,2]
[355009615,1740865840733,-216.48,0.00024657,2]
[355009616,1740865840743,-500.0,0.00024657,2]
[355009617,1740865840753,-500.0,0.00024657,2]
[355009618,1740865840763,-500.0,0.00024657,2]
[355009619,1740865840773,-1079.21,0.00024657,2]
[355009620,1740865840784,-500.0,0.00024657,2]
[355009621,1740865840794,-938.62,0.00024657,2]
[355009622,1740865840804,-500.0,0.00024657,2]
[355009623,1740865840813,-1532.28,0.00024657,2]
[355009624,1740865840823,-533.24,0.00024657,2]
[355009625,1740865840833,-1643.94,0.00024657,2]
[355009626,1740865840843,-500.0,0.00024657,2]
[355009627,1740865840853,-1000.0,0.00024657,2]
[355009628,1740865840863,-500.0,0.00024657,2]
[355009629,1740865840873,-500.0,0.00024657,2]
[355009630,1740865840883,-500.0,0.00024657,2]
[355009631,1740865840893,-500.0,0.00024657,2]
[355009632,1740865840903,-500.0,0.00024657,2]
[355009633,1740865840913,-500.0,0.00024657,2]
[355009634,1740865840923,-500.0,0.00024657,2]
[355009635,1740865840933,-500.0,0.00024657,2]
[355009636,1740865840943,-1047.29,0.00024657,2]
[355009637,1740865840954,-500.0,0.00024657,2]
[355009638,1740865840964,-500.0,0.00024657,2]
[355009639,1740865840973,-500.0,0.00024657,2]
[355009640,1740865840983,-500.0,0.00024657,2]
[355009641,1740865840993,-659.33,0.00024657,2]
[355009642,1740865841003,-500.0,0.00024657,2]
[355009643,1740865841013,-500.0,0.00024657,2]
[355009644,1740865841023,-942.58,0.00024657,2]
[355009645,1740865841034,-500.0,0.00024657,2]
[355009646,1740865841044,-848.54,0.00024657,2]
[355009647,1740865841054,-228.35587799,0.00024657,2]
[355009648,1740865841064,-500.0,0.00024657,2]
[355009649,1740865841074,-500.0,0.00024657,2]
[355009650,1740865841084,-500.0,0.00024657,2]
[355009651,1740865841094,-500.0,0.00024657,2]
[355009652,1740865841103,-500.0,0.00024657,2]
[355009653,1740865841113,-500.0,0.00024657,2]
[355009654,1740865841124,-1625.7,0.00024657,2]
[355009655,1740865841134,-2258.14,0.00024657,2]
[355009656,1740865841143,-520.02,0.00024657,2]
[355009657,1740865841153,-500.0,0.00024657,2]
[355009658,1740865841163,-500.0,0.00024657,2]
[355009659,1740865841172,-1000.0,0.00024657,2]
[355009660,1740865841182,-500.0,0.00024657,2]
[355009661,1740865841192,-500.0,0.00024657,2]
[355009662,1740865841202,-500.0,0.00024657,2]
[355009663,1740865841211,-500.0,0.00024657,2]
[355009664,1740865841222,-500.0,0.00024657,2]
[355009665,1740865841231,-500.0,0.00024657,2]
[355009666,1740865841241,-500.0,0.00024657,2]
[355009667,1740865841251,-574.97,0.00024657,2]
[355009668,1740865841352,-590.48,0.00024657,2]
[355009669,1740865841362,-1142.55,0.00024657,2]
[355009670,1740865841372,-500.0,0.00024657,2]
[355009671,1740865841381,-500.0,0.00024657,2]
[355009672,1740865841391,-500.0,0.00024657,2]
[355009673,1740865841400,-500.0,0.00024657,2]
[355009674,1740865841410,-500.0,0.00024657,2]
[355009675,1740865841420,-777.85,0.00024657,2]
[355009676,1740865841429,-994.07,0.00024657,2]
[355009677,1740865841439,-500.0,0.00024657,2]
[355009678,1740865841448,-500.0,0.00024657,2]
[355009679,1740865841457,-500.0,0.00024657,2]
[355009680,1740865841467,-500.0,0.00024657,2]
[355009681,1740865841476,-500.0,0.00024657,2]
[355009682,1740865841485,-500.0,0.00024657,2]
[355009683,1740865841494,-675.53,0.00024657,2]
[355009684,1740865841504,-502.59422479,0.00024657,2]
[355009685,1740865841513,-847.13,0.00024657,2]
[355009686,1740865841522,-500.0,0.00024657,2]
[355009687,1740865841532,-500.0,0.00024657,2]
[355009688,1740865841541,-922.77,0.00024657,2]
[355009689,1740865841555,-500.0,0.00024657,2]
[355009690,1740865841565,-890.33,0.00024657,2]
[355009691,1740865841574,-736.17,0.00024657,2]
[355009692,1740865841583,-659.61,0.00024657,2]
[355009693,1740865841593,-500.0,0.00024657,2]
[355009694,1740865841603,-1130.53,0.00024657,2]
[355009695,1740865841613,-500.0,0.00024657,2]
[355009696,1740865841622,-500.0,0.00024657,2]
[355009697,1740865841632,-500.0,0.00024657,2]
[355009698,1740865841641,-500.0,0.00024657,2]
[355009699,1740865841651,-500.0,0.00024657,2]
[355009700,1740865841660,-500.0,0.00024657,2]
[355009701,1740865841670,-500.0,0.00024657,2]
[355009702,1740865841679,-1550.64,0.00024657,2]
[355009703,1740865841689,-500.0,0.00024657,2]
[355009704,1740865841699,-500.0,0.00024657,2]
[355009705,1740865841709,-518.15,0.00024657,2]
[355009706,1740865841718,-500.0,0.00024657,2]
[355009707,1740865841728,-563.74,0.00024657,2]
[355009708,1740865841737,-500.0,0.00024657,2]
[355009709,1740865841747,-1430.17,0.00024657,2]
[355009710,1740865841756,-500.0,0.00024657,2]
[355009711,1740865841766,-500.0,0.00024657,2]
[355009712,1740865841776,-500.0,0.00024657,2]
[355009713,1740865841786,-1881.27,0.00024657,2]
[355009714,1740865841795,-4236.82,0.00024657,2]
[355009715,1740865841806,-863.69,0.00024657,2]
[355009716,1740865841816,-679.89,0.00024657,2]
[355009717,1740865841829,-500.0,0.00024657,2]
[355009718,1740865841841,-509.37184616,0.00024657,2]
[355009719,1740865841852,-500.0,0.00024657,2]
[355009720,1740865841861,-500.0,0.00024657,2]
[355009721,1740865841871,-1693.47,0.00024657,2]
[355009722,1740865841880,-500.0,0.00024657,2]
[355009723,1740865841889,-500.0,0.00024657,2]
[355009724,1740865841899,-500.0,0.00024657,2]
[355009725,1740865841908,-500.0,0.00024657,2]
[355009726,1740865841918,-506.40713011,0.00024657,2]
[355009727,1740865841929,-1358.57,0.00024657,2]
[355009728,1740865841938,-3797.89,0.00024657,2]
[355009729,1740865841947,-500.0,0.00024657,2]
[355009730,1740865841956,-500.0,0.00024657,2]
[355009731,1740865841966,-500.0,0.00024657,2]
[355009732,1740865841975,-626.03,0.00024657,2]
[355009733,1740865841985,-500.0,0.00024657,2]
[355009734,1740865841994,-500.0,0.00024657,2]
[355009735,1740865842003,-500.0,0.00024657,2]
[355009736,1740865842013,-519.85,0.00024657,2]